fUSD/lending_fUSD_20250209
["ID","MTS","AMOUNT","RATE_DAILY","PERIOD"]
[352365867,1739063438260,-500.0,9.998e-05,2]
[352365868,1739063438270,-500.0,9.998e-05,2]
[352365869,1739063438280,-500.0,9.998e-05,2]
[352365870,1739063438292,-500.0,9.998e-05,2]
[352365871,1739063438302,-500.0,9.998e-05,2]
[352365872,1739063438312,-500.0,9.998e-05,2]
[352365873,1739063438322,-534.02,9.998e-05,2]
[352365874,1739063438333,-570.78,9.998e-05,2]
[352365875,1739063438343,-500.0,9.998e-05,2]
[352365876,1739063438353,-500.0,9.998e-05,2]
[352365877,1739063438364,-500.0,9.998e-05,2]
[352365878,1739063438374,-500.0,9.998e-05,2]
[352365879,1739063438383,-471.89126162,9.998e-05,2]
[352365885,1739063440393,-28.10873838,9.998e-05,2]
[352365886,1739063440402,-500.0,9.998e-05,2]
[352365887,1739063440412,-500.0,9.998e-05,2]
[352365888,1739063440421,-500.0,9.998e-05,2]
[352365889,1739063440430,-500.0,9.998e-05,2]
[352365890,1739063440439,-500.0,9.998e-05,2]
[352365891,1739063440449,-500.0,9.998e-05,2]
[352365892,1739063440458,-500.0,9.998e-05,2]
[352365893,1739063440468,-530.23,9.998e-05,2]
[352365894,1739063440477,-568.95,9.998e-05,2]
[352365895,1739063440486,-509.39280079,9.999e-05,2]
[352365896,1739063440496,-500.0,9.999e-05,2]
[352365897,1739063440505,-453.20458587,9.999e-05,2]
[352365898,1739063440514,-500.0,9.999e-05,2]
[352365899,1739063440524,-500.0,9.999e-05,2]
[352365900,1739063440533,-500.0,9.999e-05,2]
[352365901,1739063440543,-500.0,9.999e-05,2]
[352365902,1739063440552,-507.81272666,9.999e-05,2]
[352365903,1739063440561,-500.0,9.999e-05,2]
[352365904,1739063440571,-500.0,9.999e-05,2]
[352365905,1739063440580,-503.14793318,9.999e-05,2]
[352365906,1739063440589,-500.0,9.999e-05,2]
[352365907,1739063440599,-500.0,9.999e-05,2]
[352365908,1739063440608,-420.05704058,9.999e-05,2]
[352365909,1739063440618,-300.0,9.999e-05,2]
[352365910,1739063440627,-500.0,9.999e-05,2]
[352365911,1739063440636,-500.0,9.999e-05,2]
[352365912,1739063440646,-500.0,9.999e-05,2]
[352365913,1739063440655,-500.0,9.999e-05,2]
[352365914,1739063440665,-500.0,9.999e-05,2]
[352365915,1739063440674,-500.0,9.999e-05,2]
[352365916,1739063440683,-500.0,9.999e-05,2]
[352365917,1739063440692,-500.0,9.999e-05,2]
[352365918,1739063440702,-500.0,9.999e-05,2]
[352365919,1739063440711,-500.0,9.999e-05,2]
[352365920,1739063440720,-584.48154205,9.999e-05,2]
[352365921,1739063440730,-500.0,9.999e-05,2]
[352365922,1739063440739,-500.0,9.999e-05,2]
[352365923,1739063440748,-500.0,9.999e-05,2]
[352365924,1739063440757,-500.0,9.999e-05,2]
[352365926,1739063440767,-500.0,9.999e-05,2]
[352365927,1739063440776,-500.0,9.999e-05,2]
[352365928,1739063440785,-500.0,9.999e-05,2]
[352365929,1739063440794,-500.0,9.999e-05,2]
[352365930,1739063440804,-500.0,9.999e-05,2]
[352365931,1739063440813,-500.0,9.999e-05,2]
[352365932,1739063440823,-500.0,9.999e-05,2]
[352365933,1739063440833,-500.0,9.999e-05,2]
[352365934,1739063440842,-500.0,9.999e-05,2]
[352365935,1739063440852,-500.0,9.999e-05,2]
[352365936,1739063440862,-500.0,9.999e-05,2]
[352365937,1739063440872,-500.0,9.999e-05,2]
[352365938,1739063440881,-500.0,9.999e-05,2]
[352365939,1739063440890,-96.23463249,9.999e-05,2]
[352365940,1739063440903,-403.76536751,9.999e-05,2]
[352365941,1739063440912,-500.0,9.999e-05,2]
[352365942,1739063440921,-500.0,9.999e-05,2]
[352365943,1739063440931,-500.0,9.999e-05,2]
[352365944,1739063440941,-525.3976657,9.999e-05,2]
[352365945,1739063440951,-500.0,9.999e-05,2]
[352365946,1739063440961,-500.0,9.999e-05,2]
[352365947,1739063440970,-439.63696679,9.999e-05,2]
[352365948,1739063441055,-60.36303321,9.999e-05,2]
[352365949,1739063441065,-500.0,9.999e-05,2]
[352365950,1739063441075,-60.62810222,9.999e-05,2]
[352365951,1739063441100,-558.43233762,9.999e-05,2]
[352365952,1739063441110,-229.33880591,9.999e-05,2]
[352365953,1739063441142,-271.25142518,9.999e-05,2]
[352365954,1739063441151,-394.74857482,9.999e-05,2]
[352365955,1739063441163,-105.25142518,9.999e-05,2]
[352365956,1739063441172,-500.0,9.999e-05,2]
[352365957,1739063441182,-500.0,9.999e-05,2]
[352365958,1739063441191,-500.0,9.999e-05,2]
[352365959,1739063441201,-561.8,9.999e-05,2]
[352365960,1739063441211,-500.0,9.999e-05,2]
[352365961,1739063441220,-500.0,9.999e-05,2]
[352365962,1739063441229,-500.0,9.999e-05,2]
[352365963,1739063441239,-388.38037488,9.999e-05,2]
[352365964,1739063441293,-111.61962512,9.999e-05,2]
[352365965,1739063441302,-483.28443337,9.999e-05,2]
[352365966,1739063441311,-500.0,9.999e-05,2]
[352365967,1739063441322,-500.0,9.999e-05,2]
[352365968,1739063441332,-500.0,9.999e-05,2]
[352365969,1739063441341,-500.0,9.999e-05,2]
[352365970,1739063441351,-500.0,9.999e-05,2]
[352365971,1739063441362,-359.13575945,9.999e-05,2]
[352365972,1739063441372,-500.0,9.999e-05,2]
[352365973,1739063441381,-500.0,9.999e-05,2]
[352365974,1739063441391,-500.0,9.999e-05,2]
[352365975,1739063441401,-380.04921826,9.999e-05,2]
[352365976,1739063441410,-500.0,9.999e-05,2]
[352365977,1739063441420,-500.0,9.999e-05,2]
[352365978,1739063441429,-500.0,9.999e-05,2]
[352365979,1739063441438,-500.0,9.999e-05,2]
[352365980,1739063441448,-500.0,9.999e-05,2]
[352365981,1739063441458,-500.0,9.999e-05,2]
[352365982,1739063441469,-500.0,9.999e-05,2]
[352365983,1739063441479,-500.0,9.999e-05,2]
[352365984,1739063441489,-500.0,9.999e-05,2]
[352365985,1739063441498,-500.0,9.999e-05,2]
[352365986,1739063441508,-500.0,9.999e-05,2]
[352365987,1739063441517,-500.0,9.999e-05,2]
[352365988,1739063441526,-500.0,9.999e-05,2]
[352365989,1739063441536,-500.0,9.999e-05,2]
[352365990,1739063441545,-500.0,9.999e-05,2]
[352365991,1739063441555,-500.0,9.999e-05,2]
[352365992,1739063441564,-500.0,9.999e-05,2]
[352365993,1739063441574,-500.0,9.999e-05,2]
[352365994,1739063441583,-1207.41,9.999e-05,2]
[352365995,1739063441593,-899.79,9.999e-05,2]
[352365996,1739063441602,-676.23,9.999e-05,2]
[352365997,1739063441611,-500.0,9.999e-05,2]
[352365998,1739063441621,-1349.9,9.999e-05,2]
[352365999,1739063441630,-1120.66991386,9.999e-05,2]
[352366000,1739063441911,-45.92008614,9.999e-05,2]
[352366001,1739063441921,-500.0,9.999e-05,2]
[352366002,1739063441930,-882.58831774,9.999e-05,2]
[352366003,1739063442316,227.69,0.0002,120]
[352366018,1739063443476,-282.22400001,9.448e-05,2]
[352366019,1739063443487,-386.4901369,9.448e-05,2]
[352366020,1739063443498,-333.8352262,9.448e-05,2]
[352366021,1739063443510,-464.407,9.448e-05,2]
[352366022,1739063443521,-512.6900035,9.448e-05,2]
[352366023,1739063443595,-2846.86363339,9.448e-05,2]
[352366024,1739063443604,-28.46168226,9.999e-05,2]
[352366025,1739063443613,-500.0,9.999e-05,2]
[352366026,1739063443622,-901.91606074,9.999e-05,2]
[352366027,1739063443635,-84.02393926,9.999e-05,2]
[352366028,1739063443644,-427.98392629,9.999e-05,2]
[352366029,1739063443655,-929.74280957,9.999e-05,2]
[352366030,1739063443673,-20.99326414,9.999e-05,2]
[352366031,1739063443683,-814.05665213,9.999e-05,2]
[352366046,1739063446386,-338.77334787,9.999e-05,2]
[352366047,1739063446395,-500.0,9.999e-05,2]
[352366048,1739063446405,-500.0,9.999e-05,2]
[352366049,1739063446415,-1228.89,9.999e-05,2]
[352366050,1739063446424,-500.0,9.999e-05,2]
[352366051,1739063446433,-500.0,9.999e-05,2]
[352366052,1739063446443,-500.0,9.999e-05,2]
[352366053,1739063446452,-1011.13,9.999e-05,2]
[352366054,1739063446461,-500.0,9.999e-05,2]
[352366055,1739063446471,-619.73,9.999e-05,2]
[352366056,1739063446480,-500.0,9.999e-05,2]
[352366057,1739063446489,-500.0,9.999e-05,2]
[352366058,1739063446498,-500.0,9.999e-05,2]
[352366059,1739063446508,-500.0,9.999e-05,2]
[352366060,1739063446517,-500.0,9.999e-05,2]
[352366061,1739063446526,-721.45,9.999e-05,2]
[352366062,1739063446536,-700.09,9.999e-05,2]
[352366063,1739063446545,-897.9,9.999e-05,2]
[352366064,1739063446554,-500.0,9.999e-05,2]
[352366065,1739063446564,-500.0,9.999e-05,2]
[352366066,1739063446573,-574.86,9.999e-05,2]
[352366067,1739063446582,-500.0,9.999e-05,2]
[352366068,1739063446591,-1035.95,9.999e-05,2]
[352366069,1739063446600,-647.04,9.999e-05,2]
[352366070,1739063446610,-500.0,9.999e-05,2]
[352366071,1739063446619,-26200.13931834,0.0001,2]
[352366072,1739063452651,227.68,0.0002,120]
[352366073,1739063705771,829.9,8.219e-05,2]
[352366075,1739064372716,20788.31994097,0.0002,120]
[352366104,1739064631542,-250.0,8.973e-05,2]
[352366105,1739064631551,-1000.0,8.984e-05,2]
[352366106,1739064631561,-440.48,9.12e-05,2]
[352366108,1739064631570,-1001.73168368,9.137e-05,2]
[352366109,1739064631579,-300.0,9.137e-05,2]
[352366111,1739064631587,-5482.98050795,9.138e-05,2]
[352366112,1739064631599,-40451.88949205,9.138e-05,2]
[352366113,1739064631608,-156.56,9.194e-05,2]
[352366114,1739064631618,-200.0,9.224e-05,2]
[352366115,1739064631627,-166.39,9.247e-05,2]
[352366116,1739064631635,-242.43,9.28e-05,2]
[352366117,1739064631646,-150.0,9.33e-05,2]
[352366118,1739064631655,-14605.52,9.331e-05,2]
[352366119,1739064631664,-150.43,9.341e-05,2]
[352366120,1739064631675,-1458.52,9.363e-05,2]
[352366121,1739064631686,-1964.84,9.386e-05,2]
[352366122,1739064631696,-170.11,9.718e-05,2]
[352366123,1739064631705,-500.0,9.9e-05,3]
[352366124,1739064631715,-400.0,9.9e-05,2]
[352366125,1739064631727,-500.0,9.999e-05,2]
[352366126,1739064631736,-500.0,9.999e-05,2]
[352366127,1739064631747,-500.0,9.999e-05,2]
[352366128,1739064631757,-500.0,9.999e-05,2]
[352366129,1739064631767,-500.0,9.999e-05,2]
[352366130,1739064631776,-500.0,9.999e-05,2]
[352366131,1739064631785,-500.0,9.999e-05,2]
[352366132,1739064631794,-500.0,9.999e-05,2]
[352366133,1739064631805,-500.0,9.999e-05,2]
[352366134,1739064631814,-500.0,9.999e-05,2]
[352366135,1739064631823,-500.0,9.999e-05,2]
[352366136,1739064631832,-500.0,9.999e-05,2]
[352366137,1739064631842,-500.0,9.999e-05,2]
[352366138,1739064631851,-500.0,9.999e-05,2]
[352366139,1739064631860,-500.0,9.999e-05,2]
[352366140,1739064631870,-500.0,9.999e-05,2]
[352366141,1739064631879,-500.0,9.999e-05,2]
[352366142,1739064631890,-500.0,9.999e-05,2]
[352366143,1739064631899,-500.0,9.999e-05,2]
[352366144,1739064631908,-500.0,9.999e-05,2]
[352366145,1739064631918,-500.0,9.999e-05,2]
[352366146,1739064631927,-500.0,9.999e-05,2]
[352366147,1739064631936,-500.0,9.999e-05,2]
[352366148,1739064631946,-500.0,9.999e-05,2]
[352366149,1739064631955,-500.0,9.999e-05,2]
[352366150,1739064631965,-500.0,9.999e-05,2]
[352366151,1739064631974,-500.0,9.999e-05,2]
[352366152,1739064631983,-500.0,9.999e-05,2]
[352366153,1739064631991,-500.0,9.999e-05,2]
[352366154,1739064632001,-500.0,9.999e-05,2]
[352366155,1739064632010,-500.0,9.999e-05,2]
[352366156,1739064632019,-500.0,9.999e-05,2]
[352366157,1739064632028,-500.0,9.999e-05,2]
[352366158,1739064632037,-500.0,9.999e-05,2]
[352366159,1739064632046,-500.0,9.999e-05,2]
[352366160,1739064632056,-500.0,9.999e-05,2]
[352366161,1739064632065,-500.0,9.999e-05,2]
[352366162,1739064632074,-500.0,9.999e-05,2]
[352366163,1739064632083,-500.0,9.999e-05,2]
[352366164,1739064632092,-500.0,9.999e-05,2]
[352366165,1739064632102,-500.0,9.999e-05,2]
[352366166,1739064632113,-500.0,9.999e-05,2]
[352366167,1739064632123,-500.0,9.999e-05,2]
[352366168,1739064632132,-500.0,9.999e-05,2]
[352366169,1739064632142,-500.0,9.999e-05,2]
[352366170,1739064632152,-500.0,9.999e-05,2]
[352366171,1739064632161,-500.0,9.999e-05,2]
[352366172,1739064632170,-500.0,9.999e-05,2]
[352366173,1739064632180,-500.0,9.999e-05,2]
[352366174,1739064632189,-500.0,9.999e-05,2]
[352366175,1739064632199,-500.0,9.999e-05,2]
[352366176,1739064632209,-500.0,9.999e-05,2]
[352366177,1739064632218,-500.0,9.999e-05,2]
[352366178,1739064632227,-500.0,9.999e-05,2]
[352366179,1739064632236,-500.0,9.999e-05,2]
[352366181,1739064632245,-500.0,9.999e-05,2]
[352366183,1739064632254,-500.0,9.999e-05,2]
[352366184,1739064632264,-500.0,9.999e-05,2]
[352366185,1739064632274,-500.0,9.999e-05,2]
[352366186,1739064632283,-500.0,9.999e-05,2]
[352366187,1739064632292,-500.0,9.999e-05,2]
[352366188,1739064632301,-500.0,9.999e-05,2]
[352366189,1739064632310,-500.0,9.999e-05,2]
[352366190,1739064632319,-500.0,9.999e-05,2]
[352366191,1739064632329,-500.0,9.999e-05,2]
[352366192,1739064632338,-500.0,9.999e-05,2]
[352366193,1739064632347,-500.0,9.999e-05,2]
[352366194,1739064632356,-500.0,9.999e-05,2]
[352366195,1739064632366,-500.0,9.999e-05,2]
[352366196,1739064632375,-2.4657038,9.999e-05,2]
[352366197,1739064632388,-497.5342962,9.999e-05,2]
[352366198,1739064632399,-500.0,9.999e-05,2]
[352366199,1739064632409,-500.0,9.999e-05,2]
[352366200,1739064632418,-500.0,9.999e-05,2]
[352366201,1739064632428,-500.0,9.999e-05,2]
[352366202,1739064632437,-500.0,9.999e-05,2]
[352366203,1739064632447,-500.0,9.999e-05,2]
[352366204,1739064632456,-500.0,9.999e-05,2]
[352366205,1739064632465,-500.0,9.999e-05,2]
[352366206,1739064632475,-500.0,9.999e-05,2]
[352366207,1739064632484,-500.0,9.999e-05,2]
[352366208,1739064632494,-500.0,9.999e-05,2]
[352366209,1739064632503,-524.96,9.999e-05,2]
[352366210,1739064632512,-500.0,9.999e-05,2]
[352366211,1739064632522,-538.42,9.999e-05,2]
[352366212,1739064632531,-500.0,9.999e-05,2]
[352366213,1739064632540,-500.0,9.999e-05,2]
[352366214,1739064632549,-500.0,9.999e-05,2]
[352366215,1739064632559,-517.99,9.999e-05,2]
[352366216,1739064632568,-500.0,9.999e-05,2]
[352366217,1739064632577,-500.0,9.999e-05,2]
[352366218,1739064632586,-500.0,9.999e-05,2]
[352366219,1739064632595,-500.0,9.999e-05,2]
[352366220,1739064632604,-500.0,9.999e-05,2]
[352366221,1739064632614,-500.0,9.999e-05,2]
[352366222,1739064632623,-500.0,9.999e-05,2]
[352366223,1739064632632,-500.0,9.999e-05,2]
[352366224,1739064632643,-39954.61355881,0.0001,2]
[352366225,1739064632653,-9406.0,0.0001,2]
[352366226,1739064632663,-743.32008697,0.0001,2]
[352366227,1739064632673,-1000.0,0.0001,3]
[352366228,1739064632685,-54472.80841763,0.0001,2]
[352366229,1739064632695,-420.0,0.0001005,2]
[352366230,1739064632705,-222.03347246,0.000101,2]
[352366231,1739064632715,-166.30075386,0.000101,2]
[352366232,1739064632725,-1000.0,0.00010108,2]
[352366233,1739064632734,-500.0,0.0001013,2]
[352366234,1739064632744,-500.0,0.0001013,2]
[352366235,1739064632754,-500.0,0.0001013,2]
[352366236,1739064632765,-1135.49,0.0001013,2]
[352366237,1739064632775,-1491.25,0.0001013,2]
[352366238,1739064632784,-500.0,0.0001013,2]
[352366239,1739064632794,-1096.4,0.0001013,2]
[352366240,1739064632803,-1926.31,0.0001013,2]
[352366241,1739064632813,-1553.33,0.0001013,2]
[352366242,1739064632823,-524.3,0.0001013,2]
[352366243,1739064632832,-1505.29,0.0001013,2]
[352366244,1739064632841,-500.0,0.0001013,2]
[352366245,1739064632851,-500.0,0.0001013,2]
[352366246,1739064632860,-765.69,0.0001013,2]
[352366247,1739064632869,-500.0,0.0001013,2]
[352366248,1739064632878,-500.0,0.0001013,2]
[352366249,1739064632888,-500.0,0.0001013,2]
[352366250,1739064632898,-500.0,0.0001013,2]
[352366251,1739064632907,-1250.11,0.0001013,2]
[352366252,1739064632915,-500.0,0.0001013,2]
[352366253,1739064632925,-502.51449432,0.0001013,2]
[352366254,1739064632934,-500.0,0.0001013,2]
[352366255,1739064632943,-332.17829527,0.0001013,2]
[352366256,1739064632952,-522.54554116,0.0001013,2]
[352366257,1739064632962,-1265.23,0.00010131,2]
[352366258,1739064632971,-942.17,0.00010131,2]
[352366259,1739064632980,-571.56,0.00010131,2]
[352366260,1739064632988,-608.72,0.00010131,2]
[352366261,1739064632997,-903.56,0.00010131,2]
[352366262,1739064633007,-761.356549,0.00010131,2]
[352366263,1739064633016,-500.0,0.00010131,2]
[352366264,1739064633026,-500.0,0.00010131,2]
[352366265,1739064633036,-1567.35,0.00010131,2]
[352366266,1739064633045,-155.290179,0.00010131,2]
[352366267,1739064633056,-500.0,0.00010131,2]
[352366268,1739064633066,-514.57,0.00010131,2]
[352366269,1739064633075,-500.0,0.00010131,2]
[352366270,1739064633085,-500.0,0.00010131,2]
[352366271,1739064633095,-1529.17,0.00010131,2]
[352366272,1739064633104,-820.43,0.00010131,2]
[352366273,1739064633114,-2229.24,0.00010131,2]
[352366274,1739064633124,-614.12,0.00010131,2]
[352366275,1739064633134,-635.519756,0.00010131,2]
[352366276,1739064633145,-824.85,0.00010131,2]
[352366277,1739064633155,-1108.77,0.00010131,2]
[352366278,1739064633165,-500.0,0.00010131,2]
[352366279,1739064633175,-500.0,0.00010131,2]
[352366280,1739064633185,-1431.97,0.00010131,2]
[352366281,1739064633196,-1577.26,0.00010131,2]
[352366282,1739064633205,-750.94,0.00010131,2]
[352366283,1739064633215,-1128.64,0.00010131,2]
[352366284,1739064633225,-985.47,0.00010131,2]
[352366285,1739064633234,-1364.15,0.00010131,2]
[352366286,1739064633244,-2826.52,0.00010131,2]
[352366287,1739064633254,-2171.01,0.00010131,2]
[352366288,1739064633264,-1345.65,0.00010131,2]
[352366289,1739064633274,-757.14,0.00010131,2]
[352366290,1739064633284,-500.0,0.00010131,2]
[352366291,1739064633294,-500.0,0.00010131,2]
[352366292,1739064633304,-1180.09,0.00010131,2]
[352366293,1739064633314,-500.0,0.00010131,2]
[352366294,1739064633325,-500.0,0.00010131,2]
[352366295,1739064633335,-150.431627,0.00010131,2]
[352366296,1739064633345,-1527.24,0.00010131,2]
[352366297,1739064633355,-1297.73,0.00010131,2]
[352366298,1739064633366,-879.7,0.00010131,2]
[352366299,1739064633376,-500.0,0.00010131,2]
[352366300,1739064633386,-661.94,0.00010131,2]
[352366301,1739064633402,-1376.76,0.00010131,2]
[352366302,1739064633413,-500.0,0.00010131,2]
[352366303,1739064633423,-1567.33,0.00010131,2]
[352366304,1739064633433,-500.0,0.00010131,2]
[352366305,1739064633444,-500.0,0.00010131,2]
[352366306,1739064633454,-1076.91,0.00010131,2]
[352366307,1739064633464,-2050.57,0.00010131,2]
[352366308,1739064633475,-509.31805976,0.00010132,2]
[352366309,1739064633485,-504.95504745,0.00010132,2]
[352366310,1739064633495,-500.0,0.00010132,2]
[352366311,1739064633505,-500.0,0.00010132,2]
[352366312,1739064633515,-500.0,0.00010132,2]
[352366313,1739064633525,-500.0,0.00010132,2]
[352366314,1739064633535,-650.17,0.00010132,2]
[352366315,1739064633545,-514.54417894,0.00010132,2]
[352366316,1739064633555,-501.56706838,0.00010132,2]
[352366317,1739064633564,-500.0,0.00010132,2]
[352366318,1739064633574,-500.0,0.00010132,2]
[352366319,1739064633583,-537.86957946,0.00010132,2]
[352366320,1739064633593,-500.0,0.00010132,2]
[352366321,1739064633603,-511.40736288,0.00010132,2]
[352366322,1739064633612,-500.0,0.00010132,2]
[352366323,1739064633622,-500.0,0.00010132,2]
[352366324,1739064633632,-500.0,0.00010132,2]
[352366325,1739064633645,-500.0,0.00010132,2]
[352366326,1739064633654,-500.0,0.00010132,2]
[352366327,1739064633665,-500.0,0.00010132,2]
[352366328,1739064633675,-676.84,0.00010132,2]
[352366329,1739064633686,-500.0,0.00010132,2]
[352366330,1739064633696,-500.0,0.00010132,2]
[352366331,1739064633705,-502.82538233,0.00010132,2]
[352366332,1739064633714,-500.0,0.00010132,2]
[352366333,1739064633725,-500.0,0.00010132,2]
[352366334,1739064633734,-500.78824433,0.00010132,2]
[352366335,1739064633744,-500.0,0.00010132,2]
[352366336,1739064633753,-546.96,0.00010132,2]
[352366337,1739064633764,-500.0,0.00010132,2]
[352366338,1739064633773,-500.0,0.00010132,2]
[352366339,1739064633783,-500.0,0.00010132,2]
[352366340,1739064633792,-500.0,0.00010132,2]
[352366341,1739064633802,-500.0,0.00010132,2]
[352366342,1739064633811,-500.0,0.00010132,2]
[352366343,1739064633821,-500.0,0.00010132,2]
[352366344,1739064633830,-576.95,0.00010132,2]
[352366345,1739064633840,-500.0,0.00010132,2]
[352366346,1739064633849,-500.0,0.00010132,2]
[352366347,1739064633860,-500.0,0.00010132,2]
[352366348,1739064633869,-500.0,0.00010132,2]
[352366349,1739064633878,-500.0,0.00010132,2]
[352366350,1739064633888,-500.0,0.00010132,2]
[352366351,1739064633900,-500.0,0.00010132,2]
[352366352,1739064633909,-500.0,0.00010132,2]
[352366353,1739064633919,-500.0,0.00010132,2]
[352366354,1739064633929,-525.03,0.00010132,2]
[352366355,1739064633940,-500.0,0.00010132,2]
[352366356,1739064633950,-688.22,0.00010132,2]
[352366357,1739064633959,-500.0,0.00010132,2]
[352366358,1739064633969,-500.0,0.00010132,2]
[352366359,1739064633979,-500.0,0.00010132,2]
[352366360,1739064633988,-500.0,0.00010132,2]
[352366361,1739064633997,-751.95,0.00010132,2]
[352366362,1739064634007,-500.0,0.00010132,2]
[352366363,1739064634016,-500.0,0.00010132,2]
[352366364,1739064634026,-500.0,0.00010132,2]
[352366365,1739064634036,-500.0,0.00010132,2]
[352366366,1739064634045,-500.0,0.00010132,2]
[352366367,1739064634055,-500.0,0.00010132,2]
[352366368,1739064634065,-500.0,0.00010132,2]
[352366369,1739064634074,-500.0,0.00010132,2]
[352366370,1739064634083,-500.0,0.00010132,2]
[352366371,1739064634093,-500.0,0.00010132,2]
[352366372,1739064634102,-500.0,0.00010132,2]
[352366373,1739064634112,-751.58,0.00010132,2]
[352366374,1739064634121,-500.0,0.00010132,2]
[352366375,1739064634130,-500.0,0.00010132,2]
[352366376,1739064634140,-500.0,0.00010132,2]
[352366377,1739064634150,-500.0,0.00010132,2]
[352366378,1739064634159,-713.69,0.00010132,2]
[352366379,1739064634168,-500.0,0.00010132,2]
[352366380,1739064634178,-500.0,0.00010132,2]
[352366381,1739064634187,-500.0,0.00010132,2]
[352366382,1739064634196,-500.0,0.00010132,2]
[352366383,1739064634206,-500.0,0.00010132,2]
[352366384,1739064634215,-500.0,0.00010132,2]
[352366385,1739064634225,-743.85,0.00010132,2]
[352366386,1739064634234,-500.0,0.00010132,2]
[352366387,1739064634244,-778.11,0.00010132,2]
[352366388,1739064634253,-500.0,0.00010132,2]
[352366389,1739064634263,-500.0,0.00010132,2]
[352366390,1739064634272,-686.06,0.00010132,2]
[352366391,1739064634281,-500.0,0.00010132,2]
[352366392,1739064634291,-500.0,0.00010132,2]
[352366393,1739064634300,-500.0,0.00010132,2]
[352366394,1739064634310,-500.0,0.00010132,2]
[352366395,1739064634319,-500.0,0.00010132,2]
[352366396,1739064634329,-640.12,0.00010132,2]
[352366397,1739064634338,-500.0,0.00010132,2]
[352366398,1739064634347,-625.79,0.00010132,2]
[352366399,1739064634357,-500.0,0.00010132,2]
[352366400,1739064634367,-500.0,0.00010132,2]
[352366401,1739064634376,-500.0,0.00010132,2]
[352366402,1739064634386,-620.92,0.00010132,2]
[352366403,1739064634397,-677.96,0.00010132,2]
[352366404,1739064634407,-500.0,0.00010132,2]
[352366405,1739064634417,-500.0,0.00010132,2]
[352366406,1739064634426,-580.95513449,0.00010132,2]
[352366407,1739064634436,-500.0,0.00010132,2]
[352366408,1739064634446,-500.0,0.00010132,2]
[352366409,1739064634456,-500.0,0.00010132,2]
[352366410,1739064634466,-394.37964352,0.00010132,2]
[352366411,1739064634476,-500.0,0.00010132,2]
[352366412,1739064634486,-500.0,0.00010132,2]
[352366413,1739064634495,-500.0,0.00010132,2]
[352366414,1739064634512,-500.0,0.00010132,2]
[352366415,1739064634521,-500.0,0.00010132,2]
[352366416,1739064634530,-500.0,0.00010132,2]
[352366417,1739064634539,-500.0,0.00010132,2]
[352366418,1739064634548,-500.0,0.00010132,2]
[352366419,1739064634558,-500.0,0.00010132,2]
[352366420,1739064634567,-2039.32,0.00010132,2]
[352366421,1739064634577,-500.0,0.00010132,2]
[352366422,1739064634586,-500.0,0.00010132,2]
[352366423,1739064634596,-500.0,0.00010132,2]
[352366424,1739064634605,-2934.3,0.00010132,2]
[352366425,1739064634615,-500.0,0.00010132,2]
[352366426,1739064634625,-284.16693676,0.00010132,2]
[352366427,1739064634634,-500.0,0.00010132,2]
[352366428,1739064634644,-500.0,0.00010132,2]
[352366429,1739064634653,-1525.17,0.00010132,2]
[352366430,1739064634663,-500.0,0.00010132,2]
[352366431,1739064634672,-774.95,0.00010132,2]
[352366432,1739064634683,-1829.66,0.00010132,2]
[352366433,1739064634693,-789.04,0.00010132,2]